bitfinex-derivatives/quotes_BTCF0:USTF0_20240824
["timestamp","ask_amount","ask_price","bid_price","bid_amount"]
[1724497544697,0.07987,64181.0,64180.0,0.011]
[1724497545104,0.07987,64181.0,64180.0,0.023]
[1724497545704,0.07887,64181.0,64180.0,0.012]
[1724497545904,0.07987,64181.0,64180.0,0.012]
[1724497546903,0.07987,64181.0,64178.0,0.04264836]
[1724497547503,0.07887,64181.0,64178.0,0.10752136]
[1724497547719,0.002,64181.0,64180.0,0.088871]
[1724497548106,0.002,64181.0,64180.0,0.100871]
[1724497548411,0.002,64181.0,64180.0,0.089871]
[1724497548611,0.001,64181.0,64180.0,0.077871]
[1724497548913,0.002,64181.0,64180.0,0.077871]
[1724497549419,0.002,64181.0,64180.0,0.088871]
[1724497550816,0.000233,64191.0,64190.0,0.077859]
[1724497551610,0.000233,64191.0,64190.0,0.077899]
[1724497552012,0.000233,64191.0,64190.0,0.079899]
[1724497552212,0.000233,64191.0,64190.0,0.440699]
[1724497553216,0.000233,64191.0,64190.0,0.079899]
[1724497556406,0.000233,64191.0,64190.0,0.09511456]
[1724497560521,0.000233,64191.0,64190.0,0.18511456]
[1724497560713,0.000233,64191.0,64190.0,0.23171431]
[1724497561421,0.000233,64191.0,64190.0,0.18511456]
[1724497561618,0.077846,64201.0,64190.0,0.18511456]
[1724497561818,0.077846,64201.0,64199.0,0.09]
[1724497562324,0.077846,64201.0,64200.0,4e-05]
[1724497562623,0.123641,64205.0,64200.0,4e-05]
[1724497563119,0.0458,64205.0,64204.0,0.077842]
[1724497563423,0.4508,64208.0,64204.0,0.077882]
[1724497563617,0.09,64205.0,64204.0,0.077882]
[1724497564219,0.097,64205.0,64204.0,0.077882]
[1724497564722,0.1270674,64205.0,64204.0,0.077882]
[1724497564920,0.1270674,64205.0,64204.0,0.079882]
[1724497564921,0.17618498,64205.0,64204.0,0.079882]
[1724497565128,0.31569491,64205.0,64204.0,0.079882]
[1724497565809,0.17618498,64205.0,64204.0,0.079882]
[1724497566211,0.27721885,64205.0,64204.0,0.079882]
[1724497566410,0.17618498,64205.0,64204.0,0.079882]
[1724497568122,0.25402498,64205.0,64204.0,0.079882]
[1724497568624,0.18584,64205.0,64204.0,0.079882]
[1724497571726,0.18584,64205.0,64204.0,0.169882]
[1724497571727,0.09584,64205.0,64204.0,0.169882]
[1724497572122,0.09584,64205.0,64204.0,0.079882]
[1724497573623,0.17368,64205.0,64204.0,0.00204]
[1724497575627,0.23556162,64205.0,64204.0,0.00204]
[1724497576323,0.59636162,64205.0,64204.0,0.00204]
[1724497576725,0.23556162,64205.0,64204.0,0.00204]
[1724497577034,0.59636162,64205.0,64204.0,0.00204]
[1724497577427,0.53448,64205.0,64204.0,0.00204]
[1724497579333,0.53448,64205.0,64204.0,0.04857119]
[1724497580226,0.53448,64205.0,64204.0,0.04869325]
[1724497581440,0.53448,64205.0,64204.0,0.00204]
[1724497582338,0.17368,64205.0,64204.0,0.00204]
[1724497582542,0.53448,64205.0,64204.0,0.00204]
[1724497582838,0.17368,64205.0,64204.0,0.00204]
[1724497583143,0.53448,64205.0,64204.0,0.00204]
[1724497583731,0.17368,64205.0,64204.0,0.00204]
[1724497583933,0.53448,64205.0,64204.0,0.00204]
[1724497584551,0.53448,64205.0,64204.0,0.04870291]
[1724497584838,0.17368,64205.0,64204.0,0.04870291]
[1724497585231,0.53448,64205.0,64204.0,0.00204]
[1724497586539,0.53448,64205.0,64204.0,0.04870291]
[1724497587943,2.38448,64205.0,64204.0,0.04870291]
[1724497588644,2.02368,64205.0,64204.0,0.04870291]
[1724497588831,2.38448,64205.0,64204.0,0.00204]
[1724497589246,2.46183203,64205.0,64204.0,0.04870291]
[1724497589443,2.38448,64205.0,64204.0,0.04870291]
[1724497590643,2.02368,64205.0,64204.0,0.04870291]
[1724497590842,2.38448,64205.0,64204.0,0.04870291]
[1724497591230,2.38448,64205.0,64204.0,0.00204]
[1724497593447,2.46183203,64205.0,64204.0,0.00204]
[1724497595942,2.1012788,64205.0,64204.0,0.00204]
[1724497596141,2.4620788,64205.0,64204.0,0.00204]
[1724497597646,2.1012788,64205.0,64204.0,0.00204]
[1724497597842,2.4620788,64205.0,64204.0,0.00204]
[1724497599354,2.4620788,64205.0,64193.0,0.09343151]
[1724497599355,0.46728,64204.0,64197.0,0.04671616]
[1724497599543,0.5283584,64198.0,64197.0,0.04671616]
[1724497599743,0.4508,64198.0,64195.0,0.04671616]
[1724497599942,0.09,64196.0,64195.0,0.04671616]
[1724497600446,0.09,64196.0,64194.0,0.04694978]
[1724497600447,0.077852,64195.0,64194.0,0.04694978]
[1724497601143,0.077892,64195.0,64194.0,0.04694978]
[1724497601346,0.077892,64195.0,64194.0,0.00023362]
[1724497601748,0.081892,64195.0,64194.0,0.00023362]
[1724497602044,0.159744,64195.0,64194.0,0.00023362]
[1724497602252,0.259244,64195.0,64194.0,0.00023362]
[1724497602643,0.263244,64195.0,64194.0,0.00023362]
[1724497604848,0.624044,64195.0,64194.0,0.00023362]
[1724497605044,0.68601191,64195.0,64194.0,0.00023362]
[1724497607248,0.68600026,64195.0,64194.0,0.00023362]
[1724497610550,0.714044,64195.0,64194.0,0.00023362]
[1724497614847,0.353244,64195.0,64194.0,0.00023362]
[1724497615050,0.714044,64195.0,64194.0,0.00023362]
[1724497615646,0.353244,64195.0,64194.0,0.00023362]
[1724497616057,0.714044,64195.0,64194.0,0.00023362]
[1724497622152,0.353244,64195.0,64194.0,0.00023362]
[1724497623357,0.41520026,64195.0,64194.0,0.00023362]
[1724497623960,0.77600026,64195.0,64194.0,0.00023362]
[1724497626854,0.714044,64195.0,64194.0,0.00023362]
[1724497627660,0.714044,64195.0,64194.0,0.04694978]
[1724497627857,0.446692,64195.0,64194.0,0.00023362]
[1724497628362,0.446692,64195.0,64194.0,0.07808762]
[1724497630066,0.085892,64195.0,64194.0,0.07808762]
[1724497630368,0.086892,64195.0,64194.0,0.07808762]
[1724497630868,0.36924613,64195.0,64194.0,0.07808762]
[1724497631369,0.24508805,64195.0,64194.0,0.07808762]
[1724497632364,0.24508805,64195.0,64194.0,0.10243075]
[1724497632865,0.24508805,64195.0,64194.0,0.07808762]
[1724497633170,0.24508805,64195.0,64194.0,0.10243042]
[1724497633872,0.176892,64195.0,64194.0,0.16471864]
[1724497634575,0.086892,64195.0,64194.0,0.14037584]
[1724497636277,0.00904,64195.0,64194.0,0.65971743]
[1724497636571,0.00904,64195.0,64194.0,0.58185554]
[1724497636874,0.01004,64195.0,64194.0,0.58185554]
[1724497637080,0.01004,64195.0,64194.0,0.58285554]
[1724497637081,0.01104,64195.0,64194.0,0.58285554]
[1724497637270,0.01104,64195.0,64194.0,1.12798353]
[1724497637772,0.178892,64195.0,64194.0,0.22200953]
[1724497638071,0.256744,64195.0,64194.0,0.06348439]
[1724497638270,0.617544,64195.0,64194.0,0.00123362]
[1724497638480,0.585992,64195.0,64188.0,0.01014203]
[1724497638663,0.155722,64188.0,64187.0,0.01014203]
[1724497638865,0.077868,64182.0,64181.0,0.06226261]
[1724497639067,0.077871,64180.0,64177.0,0.15568123]
[1724497639371,0.167871,64180.0,64179.0,0.38514745]
[1724497639877,0.167911,64180.0,64179.0,0.38514745]
[1724497640473,0.077911,64180.0,64179.0,0.38514745]
[1724497640675,0.078911,64180.0,64179.0,0.38714745]
[1724497641281,0.079911,64180.0,64179.0,0.458368]
[1724497641871,0.078911,64180.0,64179.0,0.42502055]
[1724497642077,0.079911,64180.0,64179.0,0.09756795]
[1724497643372,0.079911,64180.0,64179.0,0.0353474]
[1724497643770,0.078911,64180.0,64179.0,0.09556795]
[1724497644075,0.078911,64180.0,64179.0,0.08856795]
[1724497644076,0.077911,64180.0,64179.0,0.08856795]
[1724497644377,0.077911,64180.0,64179.0,0.0263474]
[1724497644678,0.46911634,64185.0,64179.0,0.0263474]
[1724497644679,0.06201634,64185.0,64179.0,0.0263474]
[1724497644878,0.06224996,64186.0,64182.0,0.3608]
[1724497645079,0.06224996,64186.0,64183.0,0.02434745]
[1724497645478,0.06224996,64186.0,64182.0,0.3608]
[1724497645479,0.06224996,64186.0,64184.0,0.02434745]
[1724497645779,0.06224996,64186.0,64182.0,0.3608]
[1724497646473,0.077867,64183.0,64182.0,0.3608]
[1724497646673,0.077867,64183.0,64182.0,0.3851475]
[1724497647376,0.077867,64183.0,64182.0,0.3608]
[1724497647575,0.077871,64180.0,64178.0,0.077873]
[1724497647778,0.077871,64180.0,64179.0,0.0243475]
[1724497647980,0.077871,64180.0,64178.0,0.077873]
[1724497647981,0.077872,64179.0,64178.0,0.077873]
[1724497648384,0.077872,64179.0,64178.0,0.10222051]
[1724497648789,0.077912,64179.0,64178.0,0.10222051]
[1724497649084,0.077912,64179.0,64178.0,0.46302051]
[1724497650379,0.077912,64179.0,64178.0,0.46802051]
[1724497651180,0.077912,64179.0,64178.0,0.4680205]
[1724497653674,0.077912,64179.0,64178.0,0.1072205]
[1724497654086,0.077912,64179.0,64178.0,0.4680205]
[1724497654282,0.077912,64179.0,64178.0,0.46802063]
[1724497654489,0.077912,64179.0,64178.0,0.46602063]
[1724497655490,0.077912,64179.0,64178.0,0.10522063]
[1724497655688,0.077912,64179.0,64178.0,0.46602063]
[1724497655886,0.077912,64179.0,64178.0,0.46302063]
[1724497657685,0.080912,64179.0,64178.0,0.46302063]
[1724497658491,0.081912,64179.0,64178.0,0.46302063]
[1724497658682,0.084912,64179.0,64178.0,0.46302063]
[1724497658884,0.084912,64179.0,64178.0,0.10222063]
[1724497659090,0.081912,64179.0,64178.0,0.46302063]
[1724497659282,0.085912,64179.0,64178.0,0.46302063]
[1724497659686,0.081912,64179.0,64178.0,0.10222063]
[1724497659884,0.084912,64179.0,64178.0,0.10222063]
[1724497660390,0.085912,64179.0,64178.0,0.46302063]
[1724497660586,0.174912,64179.0,64178.0,0.46302063]
[1724497660789,0.174912,64179.0,64178.0,0.10222063]
[1724497661094,0.174912,64179.0,64178.0,0.46302063]
[1724497661295,0.171912,64179.0,64178.0,0.46302063]
[1724497661494,0.176912,64179.0,64178.0,0.46302063]
[1724497661887,0.172912,64179.0,64178.0,0.46302063]
[1724497662188,0.175912,64179.0,64178.0,0.46402063]
[1724497663192,0.173912,64179.0,64178.0,0.46302063]
[1724497663584,0.170912,64179.0,64178.0,0.438673]
[1724497663786,0.175912,64179.0,64178.0,0.46302084]
[1724497665091,0.177912,64179.0,64178.0,0.10322084]
[1724497665293,0.177912,64179.0,64178.0,0.46402084]
[1724497665294,0.175912,64179.0,64178.0,0.46402084]
[1724497665493,0.175912,64179.0,64178.0,0.10322084]
[1724497665694,0.173912,64179.0,64178.0,0.10222084]
[1724497665892,0.173912,64179.0,64178.0,0.46302084]
[1724497667001,0.174912,64179.0,64178.0,0.46302084]
[1724497667496,0.175912,64179.0,64178.0,0.10222084]
[1724497667689,0.175912,64179.0,64178.0,0.46302084]
[1724497668300,0.23592834,64179.0,64178.0,0.46302084]
[1724497668485,0.23192834,64179.0,64178.0,0.46302084]
[1724497668688,0.23492834,64179.0,64178.0,0.46302084]
[1724497669390,0.23192834,64179.0,64178.0,0.46302084]
[1724497669594,0.23492834,64179.0,64178.0,0.46302084]
[1724497670096,0.172912,64179.0,64178.0,0.46302084]
[1724497670295,0.172912,64179.0,64178.0,0.10222084]
[1724497670590,0.172912,64179.0,64178.0,0.46302084]
[1724497671795,0.172912,64179.0,64178.0,0.10222084]
[1724497671990,0.172912,64179.0,64178.0,0.46302084]
[1724497673503,0.172912,64179.0,64178.0,0.52533596]
[1724497673703,0.172912,64179.0,64178.0,0.46302084]
[1724497675403,0.23199112,64179.0,64178.0,0.46302084]
[1724497675702,0.23499112,64179.0,64178.0,0.46302084]
[1724497675904,0.172912,64179.0,64178.0,0.46302084]
[1724497676207,0.23499112,64179.0,64178.0,0.46302084]
[1724497676407,0.172912,64179.0,64178.0,0.46302084]
[1724497676614,0.082912,64179.0,64178.0,0.46302084]
[1724497678811,0.082912,64179.0,64178.0,0.10222084]
[1724497679207,0.082912,64179.0,64178.0,0.46302084]
[1724497679405,0.250784,64179.0,64178.0,0.38514784]
[1724497679604,0.077874,64177.0,64176.0,0.06232154]
[1724497679801,0.077875,64176.0,64175.0,0.06232154]
[1724497680011,0.09,64174.0,64173.0,0.06255516]
[1724497680307,0.167878,64174.0,64173.0,0.00023362]
[1724497680509,0.24547165,64174.0,64173.0,0.00023362]
[1724497680708,0.24551165,64174.0,64173.0,0.00023362]
[1724497680913,0.32338965,64174.0,64173.0,0.00023362]
[1724497681211,0.245796,64174.0,64173.0,0.00023362]
[1724497681512,0.245796,64174.0,64173.0,0.00223362]
[1724497682207,0.245796,64174.0,64173.0,0.00323362]
[1724497682807,0.245796,64174.0,64173.0,0.00223362]
[1724497683007,0.245796,64174.0,64173.0,0.00023362]
[1724497683209,0.245796,64174.0,64173.0,0.00123362]
[1724497683410,0.26167183,64174.0,64173.0,0.00123362]
[1724497687514,0.3077421,64174.0,64173.0,0.00123362]
[1724497688911,0.323674,64174.0,64173.0,0.00123362]
[1724497693419,2.173674,64174.0,64173.0,0.00123362]
[1724497699927,2.2355477,64174.0,64173.0,0.00123362]
[1724497700212,2.1576697,64174.0,64173.0,0.00123362]
[1724497701115,2.095796,64174.0,64173.0,0.00123362]
[1724497702316,2.15767519,64174.0,64173.0,0.00123362]
[1724497703219,2.095796,64174.0,64173.0,0.00123362]
[1724497703423,2.15768544,64174.0,64173.0,0.00123362]
[1724497703814,2.15768545,64174.0,64173.0,0.00123362]
[1724497704121,0.13980745,64174.0,64173.0,0.00123362]
[1724497704316,0.167918,64174.0,64173.0,0.00123362]
[1724497705008,0.22981829,64174.0,64173.0,0.00123362]
[1724497705223,0.167918,64174.0,64173.0,0.00123362]
[1724497706427,0.24527981,64174.0,64173.0,0.00123362]
[1724497706617,0.167918,64174.0,64173.0,0.00123362]
[1724497706815,0.077918,64174.0,64173.0,0.07911262]
[1724497707010,0.077918,64174.0,64173.0,0.22161262]
[1724497708326,0.15527981,64174.0,64173.0,0.22161262]
[1724497709025,0.077918,64174.0,64173.0,0.22161262]
[1724497709817,0.15542657,64174.0,64173.0,0.22161262]
[1724497710332,0.077918,64174.0,64173.0,0.22161262]
[1724497710531,0.15542657,64174.0,64173.0,0.22161262]
[1724497710724,0.077918,64174.0,64173.0,0.22161262]
[1724497711022,0.15542657,64174.0,64173.0,0.22161262]
[1724497711629,0.15542657,64174.0,64173.0,0.00123362]
[1724497712225,0.077918,64174.0,64173.0,0.00123362]
[1724497712416,0.15541366,64174.0,64173.0,0.00123362]
[1724497714328,0.15541366,64174.0,64173.0,0.36203362]
[1724497715233,0.077918,64174.0,64173.0,0.36203362]
[1724497715523,0.15540213,64174.0,64173.0,0.36203362]
[1724497715715,0.1553997,64174.0,64173.0,0.36203362]
[1724497716224,0.17068457,64174.0,64173.0,0.36203362]
[1724497717523,0.1553997,64174.0,64173.0,0.36203362]
[1724497717720,0.077918,64174.0,64173.0,0.36203362]
[1724497718221,0.15539556,64174.0,64173.0,0.36203362]
[1724497719331,0.15539556,64174.0,64173.0,0.00123362]
[1724497719522,0.15539556,64174.0,64173.0,0.36203362]
[1724497720223,0.15539556,64174.0,64173.0,0.00123362]
[1724497720431,0.077918,64174.0,64173.0,0.38638446]
[1724497721138,0.077918,64174.0,64173.0,0.38638447]
[1724497725132,0.077918,64174.0,64173.0,0.36203362]
[1724497727331,0.15536298,64174.0,64173.0,0.36203362]
[1724497728531,0.077918,64174.0,64173.0,0.36203362]
[1724497732134,0.077918,64174.0,64173.0,0.38638436]
[1724497733435,0.077918,64174.0,64173.0,0.36203362]
[1724497733633,0.077918,64174.0,64173.0,0.38638437]
[1724497734949,0.077918,64174.0,64173.0,0.46426337]
[1724497740047,0.077918,64174.0,64173.0,0.43991262]
[1724497740257,0.077918,64174.0,64173.0,0.46426347]
[1724497740452,0.077918,64174.0,64173.0,0.43991262]
[1724497741054,0.17093711,64174.0,64173.0,0.43991262]
[1724497741248,0.17093711,64174.0,64173.0,0.36203362]
[1724497741444,0.077918,64174.0,64173.0,0.36203362]
[1724497743956,0.155796,64174.0,64173.0,0.36203362]
[1724497744154,0.077918,64174.0,64173.0,0.42436251]
[1724497744457,0.077918,64174.0,64173.0,0.44871345]
[1724497746351,0.15543846,64174.0,64173.0,0.36203362]
[1724497747257,0.17093711,64174.0,64173.0,0.36203362]
[1724497747468,0.17093711,64174.0,64173.0,0.38638458]
[1724497747764,0.17093711,64174.0,64173.0,0.02558458]
[1724497747956,0.17093711,64174.0,64173.0,0.38638458]
[1724497748958,0.17093711,64174.0,64173.0,0.02558458]
[1724497749259,0.17093711,64174.0,64173.0,0.36203362]
[1724497749565,0.17093711,64174.0,64173.0,0.38638458]
[1724497750454,0.17093711,64174.0,64173.0,0.42534612]
[1724497750650,0.17093711,64174.0,64173.0,0.38638458]
[1724497750861,0.17093711,64174.0,64173.0,0.02558458]
[1724497751060,0.17093711,64174.0,64173.0,0.38638458]
[1724497751258,0.17093711,64174.0,64173.0,0.42534611]
[1724497751762,0.17093711,64174.0,64173.0,0.06454611]
[1724497751968,0.077918,64174.0,64173.0,0.42534611]
[1724497752960,0.077918,64174.0,64173.0,0.06454611]
[1724497753161,0.077918,64174.0,64173.0,0.42534611]
[1724497753457,0.167918,64174.0,64173.0,0.42534611]
[1724497754050,0.167918,64174.0,64173.0,0.06454611]
[1724497754253,0.167918,64174.0,64173.0,0.42534611]
[1724497754959,0.167918,64174.0,64173.0,0.06454611]
[1724497755161,0.236136,64174.0,64173.0,0.42534611]
[1724497755354,0.236136,64174.0,64173.0,0.38638458]
[1724497755861,0.236136,64174.0,64173.0,0.02558458]
[1724497756171,0.39116985,64174.0,64173.0,0.02558458]
[1724497756759,0.39116985,64174.0,64173.0,0.38638458]
[1724497757461,0.236136,64174.0,64173.0,0.38638458]
[1724497758160,0.167918,64174.0,64173.0,0.38638458]
[1724497758365,0.167918,64174.0,64173.0,0.43313264]
[1724497762566,0.167918,64174.0,64173.0,0.47209417]
[1724497763865,0.167918,64174.0,64173.0,0.42534611]
[1724497764260,0.26093495,64174.0,64173.0,0.42534611]
[1724497765061,0.26093495,64174.0,64173.0,0.06454611]
[1724497765367,0.26093495,64174.0,64173.0,0.42534611]
[1724497765664,0.26093495,64174.0,64173.0,0.36203362]
[1724497765859,0.167918,64174.0,64173.0,0.4253461]
[1724497766063,0.167918,64174.0,64173.0,0.5032251]
[1724497766261,0.09302658,64182.0,64177.0,0.077874]
[1724497766461,0.09302658,64185.0,64184.0,0.077866]
[1724497766676,0.077862,64187.0,64185.0,0.077864]
[1724497766866,0.077862,64187.0,64185.0,0.10221118]
[1724497767264,0.10817193,64186.0,64185.0,0.19221118]
[1724497767459,0.10817193,64186.0,64185.0,0.19225118]
[1724497767666,0.10841078,64192.0,64191.0,0.077856]
[1724497767964,0.10793014,64192.0,64191.0,0.10220318]
[1724497768366,0.10793014,64192.0,64191.0,0.077896]
[1724497769459,0.10793014,64192.0,64191.0,4e-05]
[1724497769661,0.10793014,64192.0,64191.0,0.00104]
[1724497769969,0.12193014,64192.0,64191.0,0.00104]
[1724497770359,0.13593014,64192.0,64191.0,0.00204]
[1724497770561,0.49673014,64192.0,64191.0,0.00204]
[1724497770761,0.53485901,64192.0,64191.0,0.00204]
[1724497770961,0.58102561,64192.0,64177.0,0.077874]
[1724497771164,0.167872,64179.0,64177.0,0.077874]
[1724497771771,0.167872,64179.0,64178.0,0.15700314]
[1724497772363,0.167872,64179.0,64178.0,0.15800314]
[1724497772562,0.172872,64179.0,64178.0,0.15800314]
[1724497773376,0.177872,64179.0,64178.0,0.15800314]
[1724497774465,0.177872,64179.0,64178.0,0.56554577]
[1724497774668,0.177872,64179.0,64178.0,0.55024263]
[1724497774869,0.177872,64179.0,64178.0,0.50294263]
[1724497775072,0.177872,64179.0,64178.0,0.45794263]
[1724497775674,0.177872,64179.0,64178.0,0.4112]
[1724497775873,0.177872,64179.0,64178.0,0.3618]
[1724497777487,0.23973923,64179.0,64178.0,0.3618]
[1724497780074,0.23973923,64179.0,64178.0,0.001]
[1724497780274,0.23973923,64179.0,64178.0,0.3618]
[1724497782081,0.23973923,64179.0,64178.0,0.001]
[1724497782385,0.23973923,64179.0,64178.0,0.3618]
[1724497782883,0.23973923,64179.0,64178.0,0.001]
[1724497783479,0.177872,64179.0,64178.0,0.001]
[1724497783686,0.177872,64179.0,64178.0,0.3618]
[1724497783883,0.177872,64179.0,64178.0,0.001]
[1724497784079,0.177872,64179.0,64178.0,0.3618]
[1724497784285,0.177872,64179.0,64178.0,0.001]
[1724497784486,0.177872,64179.0,64178.0,0.3618]
[1724497785484,0.177872,64179.0,64178.0,0.001]
[1724497785684,0.177872,64179.0,64178.0,0.3618]
[1724497792493,0.24608388,64179.0,64178.0,0.3618]
[1724497794191,0.41633862,64179.0,64178.0,0.3618]
[1724497794388,0.41633862,64179.0,64178.0,0.001]
[1724497794689,0.41633862,64179.0,64178.0,0.3618]
[1724497795592,0.177872,64179.0,64178.0,0.3618]
[1724497795979,0.177872,64179.0,64178.0,0.001]
[1724497796294,0.177872,64179.0,64178.0,0.3618]
[1724497797489,0.255744,64179.0,64178.0,0.3618]
[1724497798589,0.33315495,64179.0,64178.0,0.3618]
[1724497799591,0.255744,64179.0,64178.0,0.3618]
[1724497801588,0.255744,64179.0,64178.0,0.02534881]
[1724497801788,0.255744,64179.0,64178.0,0.4085416]
[1724497802199,0.255744,64179.0,64178.0,0.4328904]
[1724497802497,0.255744,64179.0,64178.0,0.4085416]
[1724497803383,0.255744,64179.0,64178.0,0.43289041]
[1724497803587,0.255744,64179.0,64178.0,0.07209041]
[1724497803786,0.255744,64179.0,64178.0,0.43289041]
[1724497804693,0.255744,64179.0,64178.0,0.4085416]
[1724497804889,0.255744,64179.0,64178.0,0.3618]
[1724497807792,0.255744,64179.0,64178.0,0.44847253]
[1724497808498,0.255744,64179.0,64178.0,0.38614902]
[1724497808690,0.087872,64179.0,64178.0,0.46402202]
[1724497808889,0.177872,64179.0,64178.0,0.46402202]
[1724497809088,0.177872,64179.0,64178.0,0.55772202]
[1724497809595,0.177872,64179.0,64178.0,0.533373]
[1724497809790,0.177872,64179.0,64178.0,0.60582181]
[1724497810490,0.177872,64179.0,64178.0,0.581473]
[1724497810691,0.177872,64179.0,64178.0,0.60582181]
[1724497812206,0.177872,64179.0,64178.0,0.52794881]
[1724497813094,0.177872,64179.0,64178.0,0.5036]
[1724497813291,0.255744,64179.0,64178.0,0.02534882]
[1724497813497,0.2858263,64179.0,64178.0,0.02534882]
[1724497813693,0.2858263,64179.0,64178.0,0.001]
[1724497815196,0.6466263,64179.0,64178.0,0.001]
[1724497816106,0.616544,64179.0,64178.0,0.001]
[1724497816302,0.64662748,64179.0,64178.0,0.001]
[1724497816510,0.616544,64179.0,64178.0,0.001]
[1724497818201,0.64662745,64179.0,64178.0,0.001]
[1724497818600,0.616544,64179.0,64178.0,0.001]
[1724497819097,0.255744,64179.0,64178.0,0.001]
[1724497820498,0.37176811,64179.0,64178.0,0.001]
[1724497820704,0.32396504,64179.0,64178.0,0.001]
[1724497820909,0.37176811,64179.0,64178.0,0.001]
[1724497822204,0.37176773,64179.0,64178.0,0.001]
[1724497823308,0.68476482,64179.0,64178.0,0.001]
[1724497823507,0.616544,64179.0,64178.0,0.001]
[1724497823905,0.694416,64179.0,64178.0,1e-06]
[1724497824105,0.077887,64166.0,64164.0,0.00018277]
[1724497824301,0.323667,64165.0,64164.0,0.00018277]
[1724497824505,2.25103278,64165.0,64164.0,0.00018277]
[1724497824709,2.173667,64165.0,64164.0,0.00018277]
[1724497825315,2.173667,64165.0,64164.0,0.00618277]
[1724497825807,2.173667,64165.0,64164.0,7.7e-07]
[1724497826007,2.173667,64165.0,64158.0,0.00023362]
[1724497826008,0.155792,64159.0,64158.0,0.00023362]
[1724497826209,0.606592,64159.0,64158.0,0.00023362]
[1724497827210,0.607592,64159.0,64158.0,0.00423362]
[1724497827812,0.66931879,64159.0,64158.0,0.00423362]
[1724497828020,0.607592,64159.0,64158.0,0.00423362]
[1724497828212,0.66931879,64159.0,64158.0,0.00423362]
[1724497828426,0.607592,64159.0,64158.0,0.00423362]
[1724497828822,0.608592,64159.0,64158.0,0.00523362]
[1724497829127,0.530696,64159.0,64158.0,0.00523362]
[1724497829332,0.169896,64159.0,64158.0,0.00523362]
[1724497832433,0.169936,64159.0,64158.0,0.00523362]
[1724497834132,0.079936,64159.0,64158.0,0.00523362]
[1724497834532,0.00204,64159.0,64158.0,0.55073062]
[1724497834832,0.00204,64159.0,64158.0,0.59823062]
[1724497835024,0.00017564,64165.0,64164.0,0.07789]
[1724497835224,0.00017564,64165.0,64164.0,0.16789]
[1724497835928,0.00017564,64165.0,64164.0,1.03545]
[1724497836534,0.00117564,64165.0,64164.0,1.03545]
[1724497837037,0.00117564,64165.0,64164.0,1.05980125]
[1724497837222,0.00217564,64165.0,64164.0,1.06180125]
[1724497839025,0.00217564,64165.0,64164.0,1.06180034]
[1724497839339,0.00217564,64165.0,64164.0,1.07767083]
[1724497839636,0.07811562,64171.0,64167.0,0.077885]
[1724497839839,0.07811562,64171.0,64170.0,0.4508]
[1724497840336,0.16811562,64171.0,64170.0,0.3608]
[1724497841032,0.17011562,64171.0,64170.0,0.3608]
[1724497841438,0.24799762,64171.0,64170.0,0.3608]
[1724497841934,0.07789,64164.0,64163.0,0.3608]
[1724497842136,0.07789,64164.0,64158.0,0.04777362]
[1724497842137,0.16789,64164.0,64158.0,0.04777362]
[1724497842436,0.07789,64164.0,64158.0,0.04777362]
[1724497842643,0.077896,64159.0,64158.0,0.12567062]
[1724497843031,0.077936,64159.0,64158.0,0.12567062]
[1724497843438,0.077936,64159.0,64158.0,0.17221684]
[1724497843627,0.077936,64159.0,64158.0,0.12567062]
[1724497843841,0.078936,64159.0,64158.0,0.12867062]
[1724497844137,0.078936,64159.0,64158.0,0.13167062]
[1724497844138,0.079936,64159.0,64158.0,0.13167062]
[1724497844540,0.079936,64159.0,64158.0,0.49247062]
[1724497845435,0.079936,64159.0,64158.0,0.53901684]
[1724497846331,0.00204,64159.0,64158.0,0.53901684]
[1724497846538,0.00204,64159.0,64158.0,0.49247062]
[1724497848843,0.00204,64159.0,64158.0,0.51682476]
[1724497850539,0.00204,64159.0,64158.0,0.57914827]
[1724497852236,0.00204,64159.0,64158.0,0.55479413]
[1724497852438,0.00204,64159.0,64158.0,0.57896264]
[1724497852844,0.00204,64159.0,64158.0,0.5168243]
[1724497853033,0.00204,64159.0,64158.0,0.57896236]
[1724497853541,0.00204,64159.0,64158.0,0.5168243]
[1724497853744,0.00204,64159.0,64158.0,0.5789679]
[1724497854538,0.00204,64159.0,64158.0,0.5168243]
[1724497854739,0.00204,64159.0,64158.0,0.57896908]
[1724497855041,0.00204,64159.0,64158.0,0.5168243]
[1724497855840,0.00204,64159.0,64158.0,0.57897143]
[1724497856142,0.00204,64159.0,64158.0,0.57897158]
[1724497856536,0.00204,64159.0,64158.0,0.51682445]
[1724497861450,0.00204,64159.0,64158.0,0.51682425]
[1724497863950,0.00204,64159.0,64158.0,0.15602425]
[1724497864152,0.00204,64159.0,64158.0,0.51682425]
[1724497864658,0.00204,64159.0,64158.0,0.60682425]
[1724497867556,0.00204,64159.0,64158.0,0.55932425]
[1724497868649,0.00204,64159.0,64158.0,0.19852425]
[1724497868852,0.00204,64159.0,64158.0,0.55932425]
[1724497870563,0.00204,64159.0,64158.0,0.63723598]
[1724497870955,0.00204,64159.0,64158.0,0.27643598]
[1724497871162,0.00204,64159.0,64158.0,0.63723598]
[1724497871564,0.00204,64159.0,64158.0,0.75592886]
[1724497872053,0.079936,64159.0,64158.0,0.58803186]
[1724497872252,0.19127075,64159.0,64158.0,0.39142787]
[1724497872956,0.129536,64159.0,64158.0,0.39142787]
[1724497873463,0.129536,64159.0,64158.0,0.36707362]
[1724497874162,0.129536,64159.0,64158.0,0.39143007]
[1724497874367,0.129536,64159.0,64158.0,0.45373835]
[1724497874669,0.129536,64159.0,64158.0,0.48143007]
[1724497875359,0.079936,64159.0,64158.0,0.55932707]
[1724497877256,0.079936,64159.0,64158.0,0.55932529]
[1724497878067,0.00204,64159.0,64158.0,0.55932529]
[1724497878764,0.11036472,64159.0,64158.0,0.55932529]
[1724497878965,0.14045127,64159.0,64158.0,0.55932529]
[1724497879366,0.14045127,64159.0,64158.0,0.59829277]
[1724497880160,0.03212655,64159.0,64158.0,0.59829277]
[1724497881765,0.00204,64159.0,64158.0,0.71698435]
[1724497882465,0.00204,64159.0,64158.0,0.80908435]
[1724497884264,0.00204,64159.0,64158.0,0.85779071]
[1724497884661,0.07789,64164.0,64163.0,0.077891]
[1724497884865,0.07789,64164.0,64163.0,0.19224567]
[1724497885160,0.07789,64164.0,64163.0,0.23121083]